bitfinex/quotes_BTCUSD_20251221
["timestamp","ask_amount","ask_price","bid_price","bid_amount"]
[1766310954055,0.00592,89152.0,89136.0,0.00564]
[1766310954605,0.00592,89152.0,89134.0,0.01121906]
[1766310954840,0.00592,89152.0,89136.0,0.00564]
[1766310955048,0.00024344,89140.0,89136.0,0.00564]
[1766310955673,4.4e-07,89140.0,89136.0,0.00564]
[1766310956446,4.4e-07,89140.0,89136.0,0.005397]
[1766310957455,4.4e-07,89140.0,89133.0,0.45426]
[1766310957685,4.4e-07,89140.0,89134.0,0.00564]
[1766310957881,4.4e-07,89140.0,89135.0,0.00564]
[1766310958627,4.4e-07,89140.0,89134.0,0.61172]
[1766310958807,4.4e-07,89140.0,89136.0,0.00564]
[1766310959393,4.4e-07,89140.0,89134.0,0.61172]
[1766310959394,0.00055,89136.0,89134.0,0.61172]
[1766310959592,0.00055,89136.0,89129.0,0.61172]
[1766310959882,4.4e-07,89140.0,89131.0,1.06598]
[1766310960127,4.4e-07,89140.0,89132.0,0.01121931]
[1766310960330,4.4e-07,89140.0,89138.0,0.45426]
[1766310960542,4.4e-07,89140.0,89139.0,0.61172]
[1766310960936,4.4e-07,89140.0,89139.0,1.06598]
[1766310963331,4.4e-07,89140.0,89139.0,0.45426]
[1766310964982,4.4e-07,89140.0,89130.0,0.4867]
[1766310965198,4.4e-07,89140.0,89128.0,0.58109824]
[1766310965199,0.00083,89139.0,89128.0,6.824e-05]
[1766310965625,4.4e-07,89140.0,89133.0,0.05609541]
[1766310965775,4.4e-07,89140.0,89131.0,0.59224944]
[1766310965961,4.4e-07,89140.0,89128.0,6.824e-05]
[1766310966169,0.00083,89139.0,89128.0,6.824e-05]
[1766310966848,0.00083,89139.0,89127.0,0.01121994]
[1766310967021,0.00083,89139.0,89128.0,0.01121981]
[1766310967275,0.00083,89139.0,89127.0,0.01130073]
[1766310967463,0.00083,89139.0,89127.0,8.079e-05]
[1766310971485,0.00083,89139.0,89127.0,7.9e-07]
[1766310972285,4.4e-07,89140.0,89127.0,7.9e-07]
[1766310972485,4.4e-07,89140.0,89129.0,0.59224969]
[1766310972857,4.4e-07,89140.0,89133.0,0.01121918]
[1766310973240,4.4e-07,89140.0,89136.0,0.01121881]
[1766310973446,4.4e-07,89140.0,89137.0,0.01121868]
[1766310973619,4.4e-07,89140.0,89137.0,0.4867]
[1766310974424,4.4e-07,89140.0,89137.0,0.49791868]
[1766310974830,4.4e-07,89140.0,89137.0,1.07894868]
[1766310976289,4.4e-07,89140.0,89138.0,0.58103]
[1766310977072,4.4e-07,89140.0,89137.0,0.4867]
[1766310977311,4.4e-07,89140.0,89137.0,1.06773]
[1766310977712,4.4e-07,89140.0,89075.0,0.24149461]
[1766310977713,4.4e-07,89140.0,89125.0,0.62114765]
[1766310977886,4.4e-07,89140.0,89124.0,0.49792032]
[1766310977887,4.4e-07,89140.0,89124.0,0.04011765]
[1766310978095,4.4e-07,89140.0,89128.0,0.00564]
[1766310978690,4.4e-07,89140.0,89124.0,0.04011765]
[1766310978908,4.4e-07,89140.0,89119.0,0.04011765]
[1766310979115,4.4e-07,89140.0,89117.0,0.63225]
[1766310979116,0.00075,89139.0,89122.0,0.00564]
[1766310979314,0.00075,89139.0,89117.0,0.14555]
[1766310979315,0.00075,89139.0,89119.0,0.04011765]
[1766310979515,0.00075,89139.0,89121.0,0.00564]
[1766310979937,0.00075,89139.0,89119.0,0.04011765]
[1766310980096,0.00075044,89140.0,89119.0,0.04011765]
[1766310980292,0.00075044,89140.0,89120.0,0.00564]
[1766310981622,0.00075044,89140.0,89118.0,0.04011765]
[1766310981828,0.00075,89131.0,89113.0,0.0112217]
[1766310982056,0.00075,89131.0,89114.0,0.00564]
[1766310982270,0.00075,89131.0,89114.0,0.01686158]
[1766310982475,0.00075,89131.0,89114.0,0.01122158]
[1766310982673,0.00075,89131.0,89115.0,0.00564]
[1766310983503,0.00075,89131.0,89112.0,0.58103]
[1766310983504,0.0001,89128.0,89114.0,0.01122158]
[1766310983704,0.0001,89128.0,89116.0,0.01122132]
[1766310983904,0.0001,89128.0,89117.0,0.0112212]
[1766310984128,0.0001,89128.0,89116.0,0.01079149]
[1766310984989,0.0001,89128.0,89118.0,0.01122107]
[1766310985190,0.0001,89128.0,89119.0,0.01122095]
[1766310985894,0.0001,89128.0,89118.0,0.01122107]
[1766310986291,0.0001,89128.0,89117.0,0.61673]
[1766310987043,0.0001,89128.0,89117.0,0.6279512]
[1766310987248,0.0001,89128.0,89118.0,0.01122107]
[1766310988073,0.0001,89128.0,89119.0,0.01122095]
[1766310988282,0.0001,89128.0,89117.0,0.61673]
[1766310988462,0.0001,89128.0,89117.0,0.6279512]
[1766310988658,0.0001,89128.0,89117.0,0.61673]
[1766310988878,0.0001,89128.0,89117.0,0.6279512]
[1766310989524,0.0001,89128.0,89117.0,0.61673]
[1766310989936,0.0001,89128.0,89117.0,0.0112212]
[1766310990138,0.0001,89128.0,89116.0,0.46333132]
[1766310990499,0.0001,89128.0,89116.0,0.45211]
[1766310990720,0.0001,89128.0,89079.0,0.00564]
[1766310990721,0.00075,89126.0,89105.0,0.45211]
[1766310991105,0.00075,89124.0,89108.0,0.00574]
[1766310991527,0.00075,89124.0,89108.0,0.0001]
[1766310991906,0.01131981,89128.0,89108.0,0.0001]
[1766310991907,0.0001,89128.0,89110.0,0.45211]
[1766310992495,0.0001,89128.0,89108.0,0.61683]
[1766310992496,0.13026869,89126.0,89108.0,0.0001]
[1766310992715,0.000549,89110.0,89108.0,0.0001]
[1766310993125,0.06294823,89111.0,89108.0,0.0001]
[1766310993346,0.00054911,89110.0,89089.0,0.00564]
[1766310993516,0.00054911,89110.0,89088.0,0.00564]
[1766310993719,0.00054911,89110.0,89078.0,0.01122611]
[1766310993720,0.01122271,89105.0,89078.0,0.01122611]
[1766310993936,0.01122246,89107.0,89082.0,0.00564]
[1766310994138,0.01122233,89108.0,89080.0,0.01122586]
[1766310994297,0.06733477,89107.0,89080.0,0.00564]
[1766310994514,0.00054911,89106.0,89081.0,0.01122573]
[1766310994714,0.01177169,89106.0,89080.0,0.01686586]
[1766310994915,0.01122296,89103.0,89080.0,0.00564]
[1766310995118,0.00618911,89102.0,89076.0,0.01122636]
[1766310995320,0.07417207,89096.0,89069.0,0.46290725]
[1766310995482,0.01177308,89095.0,89069.0,0.45168]
[1766310995688,0.01177308,89095.0,89067.0,0.01150822]
[1766310995689,0.0112241,89094.0,89070.0,0.00564]
[1766310995890,0.00054911,89093.0,89070.0,0.00564]
[1766310996088,0.00054911,89093.0,89067.0,0.00028072]
[1766310996089,0.01196409,89093.0,89068.0,0.01122737]
[1766310996292,0.00054911,89095.0,89068.0,0.01122737]
[1766310996293,0.06294823,89082.0,89068.0,0.06736425]
[1766310996674,0.06294823,89082.0,89067.0,0.01714822]
[1766310996675,0.06294823,89082.0,89067.0,0.00028072]
[1766310996878,0.06294823,89082.0,89068.0,0.01122737]
[1766310997078,0.06294823,89082.0,89073.0,0.01122674]
[1766310997242,0.06294823,89082.0,89074.0,0.01122662]
[1766310997401,0.06294823,89082.0,89075.0,0.01122649]
[1766310997854,0.06294823,89082.0,89077.0,0.01122624]
[1766310998061,0.06294823,89082.0,89076.0,0.01122636]
[1766310998224,0.06294823,89082.0,89077.0,0.01122624]
[1766310998434,0.06284823,89082.0,89076.0,0.01122636]
[1766310998674,0.06284823,89082.0,89077.0,0.01122624]
[1766310999007,0.06284823,89082.0,89076.0,0.01122636]
[1766310999008,0.06284823,89082.0,89075.0,0.01122649]
[1766310999216,0.06284823,89082.0,89076.0,0.01122636]
[1766310999427,0.06284823,89082.0,89075.0,0.01122649]
[1766310999630,0.06284823,89082.0,89074.0,0.01122662]
[1766310999837,0.06284823,89082.0,89072.0,0.05613397]
[1766311000046,0.06284823,89082.0,89071.0,0.01122699]
[1766311000254,0.06284823,89082.0,89072.0,0.01122687]
[1766311000464,0.06284823,89082.0,89069.0,0.01122725]
[1766311000684,0.06284823,89082.0,89070.0,0.01122712]
[1766311001129,0.06284823,89082.0,89072.0,0.01122687]
[1766311001336,0.00564,89086.0,89076.0,0.01122636]
[1766311001547,0.06294823,89096.0,89078.0,0.01122611]
[1766311001767,0.05056,89095.0,89078.0,0.01122611]
[1766311001974,0.05056,89095.0,89079.0,0.01122599]
[1766311002179,0.05056,89095.0,89080.0,0.01122586]
[1766311002383,0.05056,89094.0,89080.0,0.01122586]
[1766311002935,0.06294823,89096.0,89083.0,0.05612727]
[1766311003144,0.06294823,89096.0,89083.0,0.06735258]
[1766311003145,0.00564,89093.0,89083.0,0.06735258]
[1766311003307,0.06294823,89096.0,89088.0,0.01122485]
[1766311003525,0.00564,89095.0,89093.0,0.00055]
[1766311003734,0.00564,89095.0,89087.0,0.01122498]
[1766311003735,0.00564,89095.0,89090.0,0.0112246]
[1766311003973,0.00564,89095.0,89091.0,0.01122447]
[1766311004178,0.00564,89095.0,89092.0,0.01122435]
[1766311004381,0.00564,89095.0,89090.0,0.0112246]
[1766311004578,0.01122158,89114.0,89088.0,0.01122485]
[1766311004753,0.06470975,89110.0,89089.0,0.01122473]
[1766311004959,0.06470975,89110.0,89088.0,0.01122485]
[1766311005355,0.06470975,89110.0,89087.0,0.01122498]
[1766311005774,0.06470975,89110.0,89089.0,0.01122473]
[1766311006229,0.06470975,89110.0,89092.0,0.01122435]
[1766311006442,0.0001,89118.0,89100.0,0.06733968]
[1766311006562,0.00564,89109.0,89099.0,0.01122347]
[1766311006758,0.00564,89109.0,89095.0,0.06734344]
[1766311007029,0.00564,89109.0,89083.0,0.01122548]
[1766311007030,0.06294823,89096.0,89083.0,0.01122548]
[1766311007215,0.04492,89117.0,89096.0,1e-06]
[1766311007216,0.00564,89098.0,89096.0,1e-06]
[1766311007546,0.06294823,89097.0,89088.0,0.01122485]
[1766311008292,0.06239823,89097.0,89083.0,0.06735262]
[1766311009160,0.06239823,89097.0,89085.0,0.01122523]
[1766311009484,0.06239823,89097.0,89084.0,0.00803536]
[1766311009623,0.06239823,89097.0,89085.0,0.01122523]
[1766311010410,0.06239823,89097.0,89087.0,0.01122498]
[1766311010612,0.00564,89098.0,89092.0,0.01122435]
[1766311010853,0.00564,89098.0,89093.0,0.01122422]
[1766311011029,0.06294823,89111.0,89100.0,0.01122334]
[1766311011236,0.0001,89118.0,89099.0,0.01122347]
[1766311011237,0.06858823,89110.0,89099.0,0.05611735]
[1766311011436,0.00564,89109.0,89102.0,0.01122309]
[1766311011636,0.06294823,89110.0,89099.0,0.05611735]
[1766311011637,0.06294823,89110.0,89101.0,0.01122321]
[1766311011863,0.00564,89109.0,89101.0,0.01122321]
[1766311012073,0.00564,89109.0,89102.0,0.01122309]
[1766311013050,0.00564,89109.0,89104.0,0.01122284]
[1766311013251,0.04492,89120.0,89108.0,0.01122233]
[1766311013512,0.00564,89119.0,89109.0,0.01122221]
[1766311013797,0.00564,89119.0,89108.0,0.01122233]
[1766311013949,0.00564,89119.0,89111.0,0.01122195]
[1766311014154,0.0001,89128.0,89114.0,0.01122158]
[1766311014429,0.00574,89128.0,89118.0,0.01122107]
[1766311014608,0.00574,89128.0,89121.0,0.01122069]
[1766311014836,0.00574,89128.0,89120.0,0.01122082]
[1766311015238,0.00574,89128.0,89117.0,0.62462]
[1766311015386,0.00574,89128.0,89118.0,0.01122107]
[1766311015573,0.00574,89128.0,89117.0,0.6358412]
[1766311016004,0.00574,89128.0,89117.0,0.691947]
[1766311016383,0.00564,89136.0,89121.0,0.01122069]
[1766311016721,0.00564,89136.0,89125.0,0.01122019]
[1766311017068,0.00564,89136.0,89123.0,0.63584044]
[1766311017281,0.00564,89136.0,89123.0,0.62462]
[1766311017507,0.00574,89135.0,89118.0,0.01686107]
[1766311017733,0.00574,89135.0,89118.0,0.64148107]
[1766311017933,0.00574,89135.0,89119.0,1.0763]
[1766311020338,0.00564,89136.0,89114.0,8.455e-05]
[1766311020339,0.000549,89119.0,89114.0,8.455e-05]
[1766311020556,7.945e-05,89114.0,89111.0,0.00564]
[1766311020775,0.00574,89124.0,89111.0,0.00572471]
[1766311021395,0.00574,89124.0,89111.0,8.471e-05]
[1766311021810,0.00255,89124.0,89111.0,8.471e-05]
[1766311022236,0.00564,89128.0,89115.0,0.01122145]
[1766311022466,4.4e-07,89140.0,89120.0,0.01122082]
[1766311022614,0.04492,89138.0,89120.0,0.01122082]
[1766311022818,0.04492,89138.0,89119.0,0.63584095]
[1766311023489,0.04492,89138.0,89122.0,0.01122057]
[1766311023687,4.4e-07,89140.0,89123.0,0.01122044]
[1766311023923,0.00247,89139.0,89125.0,0.01122019]
[1766311024171,0.00564,89139.0,89130.0,0.01121956]
[1766311024321,0.00564,89138.0,89130.0,0.01121956]
[1766311024523,4.4e-07,89140.0,89130.0,0.01121956]
[1766311024729,0.00564,89138.0,89129.0,0.01121969]
[1766311024931,0.00564,89138.0,89127.0,0.01121994]
[1766311025345,0.00564,89138.0,89125.0,0.46290019]
[1766311025544,0.00564,89138.0,89125.0,0.45168]
[1766311026319,0.00564,89138.0,89125.0,0.46290019]
[1766311026514,0.00564,89138.0,89127.0,0.01121994]
[1766311026762,0.00564,89138.0,89126.0,0.01122007]
[1766311027193,0.00564,89138.0,89125.0,0.45168]
[1766311028401,0.0001,89134.0,89125.0,0.45168]
[1766311030979,0.0001,89134.0,89122.0,0.01686057]
[1766311031196,0.0001,89134.0,89123.0,0.01122044]
[1766311031550,0.0001,89134.0,89122.0,0.00564]
[1766311031762,0.0001,89134.0,89118.0,0.01122107]
[1766311031763,0.000545,89123.0,89118.0,0.00564]
[1766311031994,0.000545,89123.0,89108.0,0.46895]
[1766311031995,0.00247,89123.0,89108.0,0.46895]
[1766311032178,0.00247,89123.0,89110.0,0.00564]
[1766311032402,0.00247,89123.0,89108.0,0.46895]
[1766311032578,0.00247,89123.0,89110.0,0.00564]
[1766311032776,0.00247,89123.0,89108.0,0.46895]
[1766311032984,0.00247,89123.0,89111.0,4.71e-06]
[1766311034777,0.00229,89121.0,89111.0,4.71e-06]
[1766311035004,0.00229,89119.0,89111.0,4.71e-06]
[1766311035235,0.00054911,89126.0,89111.0,4.71e-06]
[1766311035459,0.00564,89127.0,89112.0,0.46895]
[1766311035716,0.00564,89127.0,89112.0,1.05775183]
[1766311035926,0.00564,89126.0,89113.0,0.0112217]
[1766311036118,0.00564,89126.0,89117.0,0.0112212]
[1766311036335,0.00564,89126.0,89118.0,0.58880107]
[1766311036561,0.00564,89126.0,89118.0,0.57758]
[1766311036772,0.04502,89134.0,89118.0,0.57758]
[1766311036976,0.06858823,89133.0,89118.0,0.57758]
[1766311037181,0.07087823,89133.0,89118.0,0.57758]
[1766311037603,0.00229,89132.0,89117.0,0.46895]
[1766311037827,0.00229,89132.0,89115.0,0.00564]
[1766311038055,0.00229,89132.0,89115.0,0.00335]
[1766311038563,0.00229,89132.0,89112.0,0.00564]
[1766311039607,0.00229,89132.0,89111.0,4.71e-06]
[1766311039812,0.00229,89132.0,89112.0,0.00564]
[1766311041240,0.00229,89132.0,89112.0,0.01686183]
[1766311041980,0.00229,89132.0,89112.0,0.00564]
[1766311042185,0.00054911,89131.0,89112.0,0.00564]
[1766311043169,0.00054911,89131.0,89111.0,4.71e-06]
[1766311043404,0.0001,89125.0,89111.0,4.71e-06]
[1766311043609,0.00564,89124.0,89111.0,4.71e-06]
[1766311046016,0.00564,89124.0,89118.0,1.04666107]
[1766311046226,0.0001,89125.0,89119.0,1.03544]
[1766311046459,0.0001,89125.0,89119.0,1.04666095]
[1766311046657,0.0001,89125.0,89119.0,1.03544]
[1766311047266,0.0001,89125.0,89119.0,0.45957]
[1766311049243,0.0001,89125.0,89114.0,0.00564]
[1766311049244,0.0001,89125.0,89114.0,0.01686158]
[1766311049595,0.0001,89125.0,89115.0,0.01122145]
[1766311050004,0.0001,89125.0,89116.0,0.01122132]
[1766311050199,0.0001,89125.0,89119.0,0.01122095]
[1766311050807,0.0001,89125.0,89120.0,0.01122082]
[1766311051008,0.0001,89125.0,89121.0,0.01122069]
[1766311051234,0.0001,89125.0,89120.0,0.01122082]
[1766311051443,0.0001,89125.0,89119.0,0.01122095]
[1766311051649,0.0001,89125.0,89117.0,0.45957]
[1766311051853,0.0001,89125.0,89114.0,0.00564]
[1766311052277,0.0001,89125.0,89114.0,0.01686158]
[1766311052460,0.0001,89125.0,89116.0,0.01122132]
[1766311052664,0.0001,89125.0,89115.0,0.01122145]
[1766311052871,0.0001,89125.0,89114.0,0.01686158]
[1766311053076,0.0001,89125.0,89114.0,0.58151]
[1766311053291,0.0001,89125.0,89114.0,0.00564]
[1766311053497,0.0001,89125.0,89115.0,0.00564]
[1766311053708,0.0001,89125.0,89113.0,0.0112217]
[1766311053913,0.0001,89125.0,89112.0,0.01122183]
[1766311054111,0.0001,89125.0,89114.0,0.00564]
[1766311056240,0.0001,89125.0,89114.0,0.60602]
[1766311057262,0.0001,89125.0,89114.0,0.61724158]
[1766311058234,0.0001,89125.0,89114.0,0.60602]
[1766311058439,0.0002,89125.0,89111.0,4.71e-06]
[1766311058639,0.000545,89114.0,89112.0,0.00564]
[1766311059165,0.0002,89125.0,89111.0,0.00564471]
[1766311060899,0.0002,89125.0,89111.0,4.71e-06]
[1766311062024,0.0002,89125.0,89113.0,0.0112217]
[1766311062452,0.0002,89125.0,89115.0,0.01122145]
[1766311062816,0.0002,89125.0,89116.0,0.01122132]
[1766311063124,0.0002,89125.0,89114.0,0.01122158]
[1766311063319,0.0002,89125.0,89115.0,0.01122145]
[1766311063568,0.0002,89125.0,89114.0,0.01122158]
[1766311063913,0.0002,89125.0,89117.0,0.0112212]
[1766311064037,0.0002,89125.0,89119.0,0.60038]
[1766311064427,0.0002,89125.0,89097.0,0.07417195]
[1766311064629,0.05611105,89109.0,89091.0,0.03985319]
[1766311064806,0.06733822,89103.0,89080.0,0.03985319]
[1766311064978,0.00054911,89102.0,89100.0,0.00170716]
[1766311065706,0.00054911,89102.0,89077.0,0.51096624]
[1766311065953,0.00054911,89102.0,89078.0,0.01122611]
[1766311066129,0.01122334,89100.0,89077.0,0.49984722]
[1766311066327,0.00054911,89099.0,89077.0,0.49984722]
[1766311066871,0.01177258,89099.0,89077.0,0.49984722]
[1766311067330,0.06734179,89098.0,89077.0,0.00010722]
[1766311067533,0.00564,89097.0,89077.0,0.00010722]
[1766311068115,0.06294823,89092.0,89077.0,0.00010722]
[1766311069287,0.06294823,89078.0,89077.0,0.00010722]
[1766311070278,0.06294823,89078.0,89067.0,0.00028072]
[1766311070279,0.01122712,89070.0,89067.0,0.00028072]
[1766311070503,0.00618911,89069.0,89067.0,0.00038795]
[1766311070756,0.00564,89069.0,89067.0,0.00038795]
[1766311070965,0.05613247,89075.0,89067.0,0.00038795]
[1766311070966,0.01122523,89085.0,89069.0,0.000549]
[1766311071168,0.04142704,89100.0,89067.0,0.00038795]
[1766311071169,0.01122649,89075.0,89067.0,0.00038795]
[1766311071392,0.04492,89076.0,89067.0,0.00038795]
[1766311071570,0.00054911,89075.0,89067.0,0.00010723]
[1766311072393,0.01122498,89087.0,89075.0,0.000549]
[1766311072527,0.01122498,89087.0,89067.0,0.00010723]
[1766311072528,0.06294823,89076.0,89067.0,0.00010723]
[1766311072737,0.00564,89075.0,89067.0,0.00010723]
[1766311073518,0.00564,89075.0,89067.0,0.00020723]
[1766311075168,0.0181137,89075.0,89067.0,0.00020723]
[1766311075371,0.00564,89075.0,89067.0,0.00020723]
[1766311075628,0.01686649,89075.0,89067.0,0.00020723]
[1766311075832,0.05613627,89069.0,89067.0,0.00020723]
[1766311075986,0.00054911,89068.0,89067.0,0.00020723]
[1766311076186,0.00618911,89068.0,89067.0,0.00020723]
[1766311077232,0.00564,89068.0,89067.0,0.00020723]
[1766311077639,0.00618911,89068.0,89067.0,0.00020723]
[1766311078233,0.06736501,89067.0,89050.0,1.55633728]
[1766311078436,0.05613877,89065.0,89064.0,0.00020731]
[1766311078839,0.06177751,89068.0,89050.0,1.55633728]
[1766311078840,0.0673706,89060.0,89050.0,1.55633728]
[1766311079043,0.06294823,89055.0,89050.0,1.55644459]
[1766311079244,0.06239923,89055.0,89050.0,1.55644459]
[1766311079687,0.00564,89054.0,89050.0,1.55326459]
[1766311080957,0.00509,89054.0,89050.0,1.55326459]
[1766311081382,0.00509,89054.0,89050.0,1.55271559]
[1766311084635,0.00054911,89053.0,89050.0,1.55271559]
[1766311084824,0.00509,89054.0,89050.0,1.55271559]
[1766311086818,0.05614697,89052.0,89050.0,1.02178603]
[1766311087019,0.05614697,89052.0,89050.0,0.83325188]
[1766311087717,0.05614697,89052.0,89050.0,0.39780438]
[1766311088016,0.01122964,89050.0,89038.0,0.0004]
[1766311088194,0.06294823,89039.0,89038.0,0.00075814]
[1766311088348,0.06858823,89039.0,89038.0,0.00035814]
[1766311088590,0.06803923,89039.0,89038.0,0.00035814]
[1766311091258,0.06803923,89039.0,89037.0,0.0004]
[1766311091507,0.06803923,89039.0,89037.0,0.00025]
[1766311091508,0.00054911,89038.0,89037.0,0.00025]
[1766311091632,0.0728977,89039.0,89037.0,0.00025]
[1766311091835,0.0728977,89039.0,89022.0,0.0004]
[1766311091836,0.01123254,89027.0,89022.0,0.0004]
[1766311092081,0.06294823,89023.0,89022.0,0.0004]
[1766311092323,0.06858823,89023.0,89022.0,0.0004]
[1766311092974,0.06294823,89023.0,89022.0,0.0004]
[1766311093193,0.0672577,89039.0,89022.0,0.0004]
[1766311093408,0.06294823,89025.0,89022.0,0.0004]
[1766311093621,0.00564,89024.0,89022.0,0.0004]
[1766311093863,0.0672577,89039.0,89022.0,0.0004]
[1766311094076,0.00564,89038.0,89024.0,0.62012]
[1766311095786,0.06294823,89025.0,89022.0,0.0004]
[1766311095993,0.00618911,89024.0,89022.0,0.0004]
[1766311096647,0.00564,89024.0,89022.0,0.0004]
[1766311096855,0.00618911,89024.0,89022.0,0.0004]
[1766311098502,0.00618911,89024.0,88991.0,0.51106503]
[1766311098503,0.22466356,89022.0,88988.0,0.62012]
[1766311098703,0.00618911,89024.0,88960.0,0.0004]
[1766311098704,0.00618911,89024.0,88979.0,0.00666]
[1766311098705,0.02617,88989.0,88979.0,0.00666]
[1766311098985,0.06294823,88990.0,88966.0,0.63136024]
[1766311098986,0.01911,88987.0,88966.0,0.63136024]
[1766311099173,0.05114911,88988.0,88966.0,0.63136024]
[1766311099174,0.01911,88985.0,88966.0,0.62012]
[1766311099346,0.06294823,88976.0,88962.0,0.01124075]
[1766311099544,0.00564,88975.0,88963.0,0.01124062]
[1766311099946,0.00599804,88975.0,88964.0,0.0112405]
[1766311100145,0.00599804,88975.0,88965.0,0.01124037]
[1766311100374,0.00599804,88975.0,88960.0,0.0004]
[1766311100729,0.01955911,88974.0,88960.0,0.0004]
[1766311101234,0.01955911,88974.0,88950.0,0.02374296]
[1766311101235,0.01955911,88974.0,88950.0,0.01250069]
[1766311101443,0.01955911,88974.0,88950.0,6.9e-07]
[1766311101848,0.01955911,88974.0,88950.0,0.05621198]
[1766311102049,0.00599804,88975.0,88950.0,0.05621198]
[1766311102050,0.04531804,88975.0,88969.0,0.01123987]
[1766311102394,0.04531804,88975.0,88970.0,0.01123974]
[1766311102395,0.00035804,88975.0,88970.0,0.01123974]
[1766311102543,0.00035804,88975.0,88971.0,0.01123961]
[1766311102895,0.06294823,88986.0,88970.0,0.01123974]
[1766311102896,0.00611,88983.0,88974.0,0.01123923]
[1766311103047,0.02408538,88997.0,88979.0,0.0112386]
[1766311103227,0.06294823,88989.0,88980.0,0.01123848]
[1766311103429,0.06294823,88989.0,88983.0,0.0112381]
[1766311103631,0.0001,88993.0,88984.0,0.63360557]
[1766311103632,0.00564,88988.0,88984.0,0.63360557]
[1766311103818,0.00564,88988.0,88980.0,0.01123848]
[1766311103819,0.0001,88993.0,88986.0,0.62012]
[1766311104021,0.0001,88993.0,88985.0,0.45488]
[1766311104022,0.00564,88996.0,88987.0,1.075]
[1766311104274,0.00377271,88995.0,88987.0,1.075]
[1766311104472,0.00377271,88995.0,88975.0,0.22478066]
[1766311104473,0.00564,88994.0,88993.0,0.62012]
[1766311104832,0.00564,88996.0,88985.0,0.61342]
[1766311105036,0.02151,89004.0,88985.0,0.61342]
[1766311105192,0.06294823,89001.0,88985.0,0.61342]
[1766311105396,0.00564,89000.0,88985.0,0.61342]
[1766311105600,0.02151,88997.0,88980.0,0.01123848]
[1766311105777,0.02151,88996.0,88978.0,0.01123873]
[1766311106180,0.02151,88996.0,88980.0,0.01123848]
[1766311106378,0.02151,88996.0,88977.0,0.01123885]
[1766311106602,0.02151,88996.0,88978.0,0.01123873]
[1766311107029,0.02151,88996.0,88980.0,0.01123848]
[1766311107394,0.02151,88996.0,88978.0,0.06743212]
[1766311107668,0.00564,88997.0,88973.0,0.0001]
[1766311107669,0.02151,88986.0,88973.0,0.0001]
[1766311107794,0.0214,88984.0,88973.0,0.0001]
[1766311107992,0.0214,88984.0,88973.0,0.00020742]
[1766311109154,0.0214,88984.0,88963.0,0.47474943]
[1766311109155,0.02856,88983.0,88963.0,0.47474943]
[1766311109353,0.06294823,88972.0,88957.0,0.01124138]
[1766311109556,0.06294823,88972.0,88950.0,0.61342069]
[1766311109557,0.00035817,88972.0,88968.0,0.01123999]
[1766311109833,0.06294823,88987.0,88971.0,0.61342]
[1766311110018,0.06294823,88987.0,88971.0,0.00010742]
[1766311110019,0.00564,88986.0,88971.0,0.00010742]
[1766311110149,0.05064,88986.0,88971.0,0.00010742]
[1766311110347,0.02256,88988.0,88971.0,0.01134703]
[1766311110561,0.00564,88999.0,88976.0,0.01123898]
[1766311110766,0.02856,88997.0,88977.0,0.01123885]
[1766311110984,0.02856,88995.0,88977.0,0.01123885]
[1766311111186,0.02856,88994.0,88977.0,0.01123885]
[1766311111390,0.05064,88993.0,88977.0,0.01123885]
[1766311111618,0.05064,88993.0,88978.0,0.01123873]
[1766311111821,0.05064,88993.0,88977.0,0.01123885]
[1766311112031,0.02256,88999.0,88930.0,0.06109526]
[1766311112032,0.02856,88986.0,88966.0,0.06744094]
[1766311112203,0.00564,88985.0,88967.0,0.01124012]
[1766311112404,0.00564,88985.0,88968.0,0.01123999]
[1766311113030,0.02856,88984.0,88966.0,0.01124024]
[1766311113429,0.02856,88984.0,88964.0,0.05620237]
[1766311113430,0.00564,88981.0,88964.0,0.0112405]
[1766311113697,0.02845,88980.0,88967.0,0.01124012]
[1766311113926,0.00564,88979.0,88968.0,0.01123999]
[1766311114338,0.00564,88979.0,88967.0,0.01124012]
[1766311114540,0.00564,88979.0,88964.0,0.00010744]
[1766311114541,0.00564,88979.0,88964.0,0.01134794]
[1766311114740,0.00564,88979.0,88967.0,0.01124012]
[1766311115213,0.06294823,88987.0,88967.0,0.06744025]
[1766311115384,0.00564,88986.0,88972.0,0.01123949]
[1766311115584,0.00564,88986.0,88972.0,0.59428]
[1766311116018,0.06294823,88985.0,88972.0,0.59428]
[1766311116229,0.06858823,88985.0,88972.0,0.59428]
[1766311116403,0.06858823,88985.0,88972.0,0.60551949]
[1766311116638,0.06294823,88985.0,88972.0,0.59428]
[1766311116874,0.00564,88984.0,88972.0,0.59428]
[1766311117294,0.06294823,88985.0,88972.0,0.59428]
[1766311117506,0.00564,88983.0,88972.0,0.59428]
[1766311117708,0.00564,88983.0,88966.0,0.60552024]
[1766311118136,0.00564,88983.0,88968.0,0.01123999]
[1766311118316,0.00564,88983.0,88969.0,0.01123987]
[1766311118470,0.00564,88983.0,88967.0,0.01124012]
[1766311118871,0.00564,88983.0,88969.0,0.01123987]
[1766311119090,0.00564,88983.0,88968.0,0.01123999]
[1766311119289,0.00564,88983.0,88966.0,0.60552024]
[1766311119495,0.00564,88983.0,88967.0,0.01124012]
[1766311119699,0.00564,88983.0,88968.0,0.01123999]
[1766311119909,0.00564,88983.0,88969.0,0.01123987]
[1766311120080,0.00564,88983.0,88971.0,0.01123961]
[1766311120307,0.00564,88983.0,88969.0,0.06743912]
[1766311120512,0.01721,88984.0,88969.0,0.06743912]
[1766311120513,0.01721,88984.0,88973.0,0.01123936]
[1766311120713,0.00564,88982.0,88971.0,0.01123961]
[1766311121092,0.00564,88982.0,88970.0,0.01123974]
[1766311121646,0.00564,88982.0,88971.0,0.01123961]
[1766311121773,0.00564,88982.0,88972.0,0.01123949]
[1766311122136,0.00564,88982.0,88974.0,0.01123923]
[1766311122288,0.00564,88982.0,88971.0,0.01123961]
[1766311122670,0.00564,88982.0,88972.0,0.01123949]
[1766311122877,0.00564,88982.0,88970.0,0.01123974]
[1766311123103,0.00564,88982.0,88975.0,0.01123911]
[1766311123302,0.00564,88982.0,88972.0,0.60551949]
[1766311123545,0.00564,88982.0,88972.0,0.01123949]
[1766311123947,0.00564,88982.0,88971.0,0.01123961]
[1766311124902,0.02285,88982.0,88969.0,0.01123987]
[1766311125160,0.01721,88981.0,88968.0,0.01123999]
[1766311125919,0.00564,88980.0,88968.0,0.01123999]
[1766311126123,0.01721,88979.0,88963.0,0.06744367]
[1766311126364,0.01721,88979.0,88966.0,0.01124024]
[1766311126616,0.01721,88979.0,88964.0,0.01134794]